Workbook

Sheet 浴室改造费用
B1: 浴室改造费用工作表
B2: 注意：如果实际金额超过预计金额，表中将显示差额列。红色数字表示金额超出（负数），黑色表示盈余（正数）。
E3: 明细费用 (¥) | H3: 总费用 (¥)
B4: 区域 | C4: 物品​ | D4: 数量 | E4: 估计 | F4: 实际 | G4: 差额 | H4: 估计 | I4: 实际 | J4: 差额
B5: 浴室/淋浴 | C5: 浴缸，铸铁，5 英尺，标准 | D5: 1 | E5: ¥250.00 | F5: =RANDBETWEEN(E5+2,E5+20) -> ¥270.00 | G5: =IFERROR(成本[[#This Row],[估计]]-成本[[#This Row],[实际]], "") -> (¥20.00) | H5: =IFERROR(成本[[#This Row],[数量]]*成本[[#This Row],[估计]], "") -> ¥250.00 | I5: =IFERROR(成本[[#This Row],[数量]]*成本[[#This Row],[实际]], "") -> ¥270.00 | J5: =IFERROR(成本[[#This Row],[估计 ]]-成本[[#This Row],[实际 ]], "") -> (¥20.00)
B6: 浴室/淋浴 | C6: 浴室门，铰链式，标准 | D6: 1 | E6: ¥200.00 | F6: ¥208.00 | G6: =IFERROR(成本[[#This Row],[估计]]-成本[[#This Row],[实际]], "") -> (¥8.00) | H6: =IFERROR(成本[[#This Row],[数量]]*成本[[#This Row],[估计]], "") -> ¥200.00 | I6: =IFERROR(成本[[#This Row],[数量]]*成本[[#This Row],[实际]], "") -> ¥208.00 | J6: =IFERROR(成本[[#This Row],[估计 ]]-成本[[#This Row],[实际 ]], "") -> (¥8.00)
B7: 浴室/淋浴 | C7: 喷头，标准 | D7: 1 | E7: ¥50.00 | F7: ¥59.00 | G7: =IFERROR(成本[[#This Row],[估计]]-成本[[#This Row],[实际]], "") -> (¥9.00) | H7: =IFERROR(成本[[#This Row],[数量]]*成本[[#This Row],[估计]], "") -> ¥50.00 | I7: =IFERROR(成本[[#This Row],[数量]]*成本[[#This Row],[实际]], "") -> ¥59.00 | J7: =IFERROR(成本[[#This Row],[估计 ]]-成本[[#This Row],[实际 ]], "") -> (¥9.00)
B8: 浴室/淋浴 | C8: 浴缸壁围绕物，标准 | D8: 1 | E8: ¥200.00 | F8: ¥220.00 | G8: =IFERROR(成本[[#This Row],[估计]]-成本[[#This Row],[实际]], "") -> (¥20.00) | H8: =IFERROR(成本[[#This Row],[数量]]*成本[[#This Row],[估计]], "") -> ¥200.00 | I8: =IFERROR(成本[[#This Row],[数量]]*成本[[#This Row],[实际]], "") -> ¥220.00 | J8: =IFERROR(成本[[#This Row],[估计 ]]-成本[[#This Row],[实际 ]], "") -> (¥20.00)
B9: 橱柜 | C9: 药柜，24 英寸，豪华 | D9: 1 | E9: ¥200.00 | F9: ¥211.00 | G9: =IFERROR(成本[[#This Row],[估计]]-成本[[#This Row],[实际]], "") -> (¥11.00) | H9: =IFERROR(成本[[#This Row],[数量]]*成本[[#This Row],[估计]], "") -> ¥200.00 | I9: =IFERROR(成本[[#This Row],[数量]]*成本[[#This Row],[实际]], "") -> ¥211.00 | J9: =IFERROR(成本[[#This Row],[估计 ]]-成本[[#This Row],[实际 ]], "") -> (¥11.00)
B10: 橱柜 | C10: 单元式梳妆台，30 英寸，标准 | D10: 2 | E10: ¥100.00 | F10: ¥108.00 | G10: =IFERROR(成本[[#This Row],[估计]]-成本[[#This Row],[实际]], "") -> (¥8.00) | H10: =IFERROR(成本[[#This Row],[数量]]*成本[[#This Row],[估计]], "") -> ¥200.00 | I10: =IFERROR(成本[[#This Row],[数量]]*成本[[#This Row],[实际]], "") -> ¥216.00 | J10: =IFERROR(成本[[#This Row],[估计 ]]-成本[[#This Row],[实际 ]], "") -> (¥16.00)
B11: 台面 | C11: 瓷砖，豪华（数量以英尺为单位） | D11: 5 | E11: ¥22.50 | F11: ¥25.00 | G11: =IFERROR(成本[[#This Row],[估计]]-成本[[#This Row],[实际]], "") -> (¥2.50) | H11: =IFERROR(成本[[#This Row],[数量]]*成本[[#This Row],[估计]], "") -> ¥112.50 | I11: =IFERROR(成本[[#This Row],[数量]]*成本[[#This Row],[实际]], "") -> ¥125.00 | J11: =IFERROR(成本[[#This Row],[估计 ]]-成本[[#This Row],[实际 ]], "") -> (¥12.50)
B12: 水龙头 | C12: 水龙头，浴缸，标准 | D12: 1 | E12: ¥90.00 | F12: ¥106.00 | G12: =IFERROR(成本[[#This Row],[估计]]-成本[[#This Row],[实际]], "") -> (¥16.00) | H12: =IFERROR(成本[[#This Row],[数量]]*成本[[#This Row],[估计]], "") -> ¥90.00 | I12: =IFERROR(成本[[#This Row],[数量]]*成本[[#This Row],[实际]], "") -> ¥106.00 | J12: =IFERROR(成本[[#This Row],[估计 ]]-成本[[#This Row],[实际 ]], "") -> (¥16.00)
B13: 水龙头 | C13: 水龙头，淋浴，单把手，标准 | D13: 1 | E13: ¥115.00 | F13: ¥134.00 | G13: =IFERROR(成本[[#This Row],[估计]]-成本[[#This Row],[实际]], "") -> (¥19.00) | H13: =IFERROR(成本[[#This Row],[数量]]*成本[[#This Row],[估计]], "") -> ¥115.00 | I13: =IFERROR(成本[[#This Row],[数量]]*成本[[#This Row],[实际]], "") -> ¥134.00 | J13: =IFERROR(成本[[#This Row],[估计 ]]-成本[[#This Row],[实际 ]], "") -> (¥19.00)
B14: 水龙头 | C14: 水槽水龙头，标准 | D14: 1 | E14: ¥95.00 | F14: ¥108.00 | G14: =IFERROR(成本[[#This Row],[估计]]-成本[[#This Row],[实际]], "") -> (¥13.00) | H14: =IFERROR(成本[[#This Row],[数量]]*成本[[#This Row],[估计]], "") -> ¥95.00 | I14: =IFERROR(成本[[#This Row],[数量]]*成本[[#This Row],[实际]], "") -> ¥108.00 | J14: =IFERROR(成本[[#This Row],[估计 ]]-成本[[#This Row],[实际 ]], "") -> (¥13.00)
B15: 地板 | C15: 瓷砖，标准（数量以平方英尺为单位） | D15: 35 | E15: ¥12.00 | F15: ¥20.00 | G15: =IFERROR(成本[[#This Row],[估计]]-成本[[#This Row],[实际]], "") -> (¥8.00) | H15: =IFERROR(成本[[#This Row],[数量]]*成本[[#This Row],[估计]], "") -> ¥420.00 | I15: =IFERROR(成本[[#This Row],[数量]]*成本[[#This Row],[实际]], "") -> ¥700.00 | J15: =IFERROR(成本[[#This Row],[估计 ]]-成本[[#This Row],[实际 ]], "") -> (¥280.00)
B16: 硬件 | C16: 毛巾杆，标准 | D16: 2 | E16: ¥15.00 | F16: ¥27.00 | G16: =IFERROR(成本[[#This Row],[估计]]-成本[[#This Row],[实际]], "") -> (¥12.00) | H16: =IFERROR(成本[[#This Row],[数量]]*成本[[#This Row],[估计]], "") -> ¥30.00 | I16: =IFERROR(成本[[#This Row],[数量]]*成本[[#This Row],[实际]], "") -> ¥54.00 | J16: =IFERROR(成本[[#This Row],[估计 ]]-成本[[#This Row],[实际 ]], "") -> (¥24.00)
B17: 硬件 | C17: 卫生纸架 | D17: 1 | E17: ¥10.00 | F17: ¥27.00 | G17: =IFERROR(成本[[#This Row],[估计]]-成本[[#This Row],[实际]], "") -> (¥17.00) | H17: =IFERROR(成本[[#This Row],[数量]]*成本[[#This Row],[估计]], "") -> ¥10.00 | I17: =IFERROR(成本[[#This Row],[数量]]*成本[[#This Row],[实际]], "") -> ¥27.00 | J17: =IFERROR(成本[[#This Row],[估计 ]]-成本[[#This Row],[实际 ]], "") -> (¥17.00)
B18: 照明 | C18: 嵌壁灯，标准 | D18: 4 | E18: ¥25.00 | F18: ¥30.00 | G18: =IFERROR(成本[[#This Row],[估计]]-成本[[#This Row],[实际]], "") -> (¥5.00) | H18: =IFERROR(成本[[#This Row],[数量]]*成本[[#This Row],[估计]], "") -> ¥100.00 | I18: =IFERROR(成本[[#This Row],[数量]]*成本[[#This Row],[实际]], "") -> ¥120.00 | J18: =IFERROR(成本[[#This Row],[估计 ]]-成本[[#This Row],[实际 ]], "") -> (¥20.00)
B19: 水槽 | C19: 盥洗台，标准 | D19: 2 | E19: ¥60.00 | F19: ¥64.00 | G19: =IFERROR(成本[[#This Row],[估计]]-成本[[#This Row],[实际]], "") -> (¥4.00) | H19: =IFERROR(成本[[#This Row],[数量]]*成本[[#This Row],[估计]], "") -> ¥120.00 | I19: =IFERROR(成本[[#This Row],[数量]]*成本[[#This Row],[实际]], "") -> ¥128.00 | J19: =IFERROR(成本[[#This Row],[估计 ]]-成本[[#This Row],[实际 ]], "") -> (¥8.00)
B20: 其他 | D20: 1 | E20: ¥20.00 | F20: ¥29.00 | G20: =IFERROR(成本[[#This Row],[估计]]-成本[[#This Row],[实际]], "") -> (¥9.00) | H20: =IFERROR(成本[[#This Row],[数量]]*成本[[#This Row],[估计]], "") -> ¥20.00 | I20: =IFERROR(成本[[#This Row],[数量]]*成本[[#This Row],[实际]], "") -> ¥29.00 | J20: =IFERROR(成本[[#This Row],[估计 ]]-成本[[#This Row],[实际 ]], "") -> (¥9.00)
B21: 小计 | E21: =SUBTOTAL(109,成本[估计]) -> ¥1,464.50 | F21: =SUBTOTAL(109,成本[实际]) -> ¥1,646.00 | G21: =SUBTOTAL(109,成本[差额]) -> (¥181.50) | H21: =SUBTOTAL(109,成本[[估计 ]]) -> ¥2,212.50 | I21: =SUBTOTAL(109,成本[[实际 ]]) -> ¥2,715.00 | J21: =SUBTOTAL(109,成本[[差额 ]]) -> (¥502.50)
B23: 非预期支出（预计加 30%） | E23: =IFERROR(成本[[#Totals],[估计]]*0.3, "") -> ¥439.35 | H23: =IFERROR(成本[[#Totals],[估计 ]]*0.3, "") -> ¥663.75
B24: 总费用 | E24: =IFERROR(SUM(E21:E21), "") -> ¥1,464.50 | H24: =IFERROR(SUM(成本[[#Totals],[估计 ]],超额), "") -> ¥2,876.25
